[Event "3rd FIDE WCCC Rapid U08 2019"]
[Site "Minsk"]
[Date "2019.08.16"]
[Round "2.1"]
[White "Oybekov, Ozodbekjon"]
[Black "Rudenko, Taras"]
[Result "1/2-1/2"]
[ECO "D43"]
[WhiteElo "1078"]
[BlackElo "1676"]
[Annotator "NA"]
[PlyCount "136"]
[EventDate "2019.08.16"]
[EventType "swiss"]
[EventCountry "BLR"]
[SourceTitle "playchess.com"]
[Source "ChessBase"]
[SourceQuality "1"]
[TimeControl "600+5"]

1. d4 {[%emt 0:00:00]} d5 {[%emt 0:00:00]} 2. c4 {[%emt 0:00:00]} e6 {[%emt 0:00:01]} 3. Nc3 {[%emt 0:00:02]} Nf6 {[%emt 0:00:03]} 4. Nf3 {[%emt 0:00:02]} c6 {[%emt 0:00:03]} 5. Bf4 {[%emt 0:00:03]} Bd6 {[%emt 0:00:07]} 6. Bxd6 {[%emt 0:00:02]} Qxd6 {[%emt 0:00:01]} 7. e3 {[%emt 0:00:02]} O-O {[%emt 0:00:04]} 8. Be2 {[%emt 0:00:02]} dxc4 {[%emt 0:00:34]} 9. Bxc4 {[%emt 0:00:02]} Qb4 {[%emt 0:00:16]} 10. Qb3 {[%emt 0:00:07]} a5 {[%emt 0:00:25]} 11. O-O {[%emt 0:00:12]} b5 {[%emt 0:00:02]} 12. Bd3 {[%emt 0:00:07]} Bb7 {[%emt 0:00:47]} 13. Qc2 {[%emt 0:00:10]} h6 {[%emt 0:00:06]} 14. a3 {[%emt 0:00:02]} Qe7 {[%emt 0:00:09]} 15. Rad1 {[%emt 0:00:03]} Rd8 {[%emt 0:00:02]} 16. Rfe1 {[%emt 0:00:02]} a4 17. e4 {[%emt 0:00:07]} Na6 {[%emt 0:00:55]} 18. h3 {[%emt 0:00:12]} Nc7 {[%emt 0:00:13]} 19. Rd2 {[%emt 0:00:07]} Rd7 {[%emt 0:01:03]} 20. Red1 {[%emt 0:00:03]} Rad8 {[%emt 0:00:02]} 21. Be2 {[%emt 0:00:06]} Nfe8 {[%emt 0:00:35]} 22. Bf1 {[%emt 0:00:14]} Nd6 {[%emt 0:00:24]} 23. e5 {[%emt 0:00:16]} Nc8 {[%emt 0:00:36]} 24. Ne4 {[%emt 0:00:11]} Na6 {[%emt 0:00:19]} 25. Be2 {[%emt 0:00:14]} Nb6 {[%emt 0:01:35]} 26. g3 {[%emt 0:00:30]} Nd5 {[%emt 0:00:05]} 27. Nd6 {[%emt 0:00:31]} Rxd6 {[%emt 0:00:02]} 28. exd6 {[%emt 0:00:02]} Qxd6 {[%emt 0:00:07]} 29. Ne5 {[%emt 0:00:28]} Ne7 {[%emt 0:00:43]} 30. Qe4 {[%emt 0:00:35]} Qc7 {[%emt 0:01:01]} 31. Bf3 {[%emt 0:00:06]} Rd5 {[%emt 0:00:29]} 32. Qf4 {[%emt 0:00:19]} Nf5 {[%emt 0:00:13]} 33. Bxd5 {[%emt 0:00:05]} cxd5 {[%emt 0:00:03]} 34. g4 {[%emt 0:00:34]} Nd6 {[%emt 0:00:10]} 35. Re2 {[%emt 0:00:25]} Nc4 {[%emt 0:00:13]} 36. Rc1 {[%emt 0:00:11]} Nb8 {[%emt 0:00:28]} 37. Qf3 {[%emt 0:00:40]} Nc6 {[%emt 0:00:35]} 38. Nxc6 {[%emt 0:00:09]} Bxc6 {[%emt 0:00:03]} 39. Kg2 {[%emt 0:00:14]} e5 40. dxe5 d4 41. Re4 {[%emt 0:00:37]} Nd2 {[%emt 0:00:32]} 42. Qd1 {[%emt 0:00:27]} Nxe4 {[%emt 0:00:02]} 43. f3 {[%emt 0:00:06]} Ng5 {[%emt 0:00:02]} 44. Qxd4 {[%emt 0:00:16]} Nxf3 {[%emt 0:00:01]} 45. Rxc6 {[%emt 0:00:11]} Qxc6 {[%emt 0:00:02]} 46. Qd8+ {[%emt 0:00:01]} Kh7 {[%emt 0:00:01]} 47. Qd3+ {[%emt 0:00:01]} g6 {[%emt 0:00:02]} 48. Qxf3 {[%emt 0:00:04]} Qc2+ {[%emt 0:00:05]} 49. Qf2 {[%emt 0:00:02]} Qe4+ {[%emt 0:00:01]} 50. Qf3 {[%emt 0:00:04]} Qxe5 {[%emt 0:00:02]} 51. Qxf7+ {[%emt 0:00:01]} Kh8 {[%emt 0:00:05]} 52. Qxg6 {[%emt 0:00:03]} Qxb2+ {[%emt 0:00:01]} 53. Kg1 {[%emt 0:00:04]} Qa1+ {[%emt 0:00:02]} 54. Kg2 {[%emt 0:00:02]} Qb2+ {[%emt 0:00:01]} 55. Kg1 {[%emt 0:00:02]} Qc1+ {[%emt 0:00:02]} 56. Kg2 {[%emt 0:00:02]} Qb2+ {[%emt 0:00:02]} 57. Kg1 {[%emt 0:00:01]} Qa1+ {[%emt 0:00:01]} 58. Kg2 {[%emt 0:00:01]} Qb2+ {[%emt 0:00:01]} 59. Kg1 {[%emt 0:00:02]} Qa1+ {[%emt 0:00:01]} 60. Kg2 {[%emt 0:00:01]} Qa2+ {[%emt 0:00:10]} 61. Kg1 {[%emt 0:00:02]} Qa1+ {[%emt 0:00:01]} 62. Kg2 {[%emt 0:00:02]} Qg7 {[%emt 0:00:17]} 63. Qe8+ {[%emt 0:00:08]} Kh7 {[%emt 0:00:04]} 64. Qxb5 {[%emt 0:00:04]} Qa7 {[%emt 0:00:06]} 65. Qf5+ {[%emt 0:00:04]} Kg7 {[%emt 0:00:01]} 66. Qe5+ {[%emt 0:00:03]} Kh7 {[%emt 0:00:02]} 67. Qe4+ {[%emt 0:00:05]} Kg7 {[%emt 0:00:02]} 68. Qe5+ {[%emt 0:00:03]} Kh7 {[%emt 0:00:01]} 1/2-1/2

[Event "3rd FIDE WCCC Rapid U08 2019"]
[Site "Minsk"]
[Date "2019.08.16"]
[Round "2.2"]
[White "Yeganegi, Barad"]
[Black "Bat-Ochir Zorig"]
[Result "1-0"]
[ECO "E20"]
[WhiteElo "1612"]
[BlackElo "1117"]
[Annotator "NA"]
[PlyCount "43"]
[EventDate "2019.08.16"]
[EventType "swiss"]
[EventCountry "BLR"]
[SourceTitle "playchess.com"]
[Source "ChessBase"]
[SourceQuality "1"]
[TimeControl "600+5"]

1. d4 {[%emt 0:00:00]} Nf6 {[%emt 0:00:00]} 2. c4 {[%emt 0:00:00]} e6 {[%emt 0:00:00]} 3. Nc3 {[%emt 0:00:01]} Bb4 {[%emt 0:00:02]} 4. f3 {[%emt 0:00:01]} O-O {[%emt 0:00:06]} 5. a3 {[%emt 0:00:16]} Bxc3+ {[%emt 0:00:03]} 6. bxc3 {[%emt 0:00:01]} Qe7 {[%emt 0:00:08]} 7. e4 {[%emt 0:00:07]} d6 {[%emt 0:00:03]} 8. Bd3 {[%emt 0:00:06]} Nbd7 {[%emt 0:00:03]} 9. Ne2 {[%emt 0:00:06]} e5 {[%emt 0:00:02]} 10. O-O {[%emt 0:00:14]} b6 {[%emt 0:00:02]} 11. Ng3 {[%emt 0:00:35]} Nb8 {[%emt 0:00:24]} 12. Be3 {[%emt 0:00:33]} c5 {[%emt 0:00:21]} 13. Qc2 {[%emt 0:01:09]} Nc6 {[%emt 0:00:12]} 14. d5 {[%emt 0:00:21]} Na5 {[%emt 0:00:05]} 15. Rae1 {[%emt 0:00:09]} Ba6 {[%emt 0:00:03]} 16. Nf5 {[%emt 0:00:27]} Qd7 {[%emt 0:00:04]} 17. Qe2 {[%emt 0:00:47]} Rad8 {[%emt 0:00:14]} 18. Bg5 {[%emt 0:00:04]} Nh5 {[%emt 0:02:05]} 19. f4 {[%emt 0:01:43]} Nxf4 {[%emt 0:00:27]} 20. Qg4 {[%emt 0:00:46]} Nxd3 {[%emt 0:00:52]} 21. Bf6 {[%emt 0:00:09]} g6 {[%emt 0:03:45]} 22. Nh6# {[%emt 0:00:02]} 1-0

[Event "3rd FIDE WCCC Rapid U08 2019"]
[Site "Minsk"]
[Date "2019.08.16"]
[Round "2.3"]
[White "Averkiev, Sergei"]
[Black "Bouska, Jiri"]
[Result "0-1"]
[ECO "B32"]
[WhiteElo "1085"]
[BlackElo "1505"]
[Annotator "NA"]
[PlyCount "100"]
[EventDate "2019.08.16"]
[EventType "swiss"]
[EventCountry "BLR"]
[SourceTitle "playchess.com"]
[Source "ChessBase"]
[SourceQuality "1"]
[TimeControl "600+5"]

1. e4 {[%emt 0:00:00]} c5 {[%emt 0:00:00]} 2. Nf3 {[%emt 0:00:00]} Nc6 {[%emt 0:00:00]} 3. d4 {[%emt 0:00:00]} cxd4 {[%emt 0:00:01]} 4. Nxd4 {[%emt 0:00:01]} d6 {[%emt 0:00:02]} 5. Nc3 {[%emt 0:00:01]} e6 {[%emt 0:00:02]} 6. Nf3 {[%emt 0:00:03]} Nf6 {[%emt 0:00:03]} 7. Bg5 {[%emt 0:00:02]} Be7 {[%emt 0:00:02]} 8. Be2 {[%emt 0:00:03]} O-O {[%emt 0:00:02]} 9. O-O {[%emt 0:00:05]} h6 {[%emt 0:00:00]} 10. Bh4 {[%emt 0:00:02]} e5 {[%emt 0:00:09]} 11. Nd5 {[%emt 0:00:05]} Nxd5 {[%emt 0:00:02]} 12. Bxe7 {[%emt 0:00:02]} Ndxe7 {[%emt 0:00:03]} 13. Bc4 {[%emt 0:00:15]} Be6 {[%emt 0:00:03]} 14. Bd5 {[%emt 0:00:03]} Bxd5 {[%emt 0:00:05]} 15. exd5 {[%emt 0:00:01]} Nb4 {[%emt 0:00:00]} 16. c3 {[%emt 0:00:02]} Nbxd5 {[%emt 0:00:02]} 17. c4 {[%emt 0:00:03]} Nf4 {[%emt 0:00:02]} 18. g3 {[%emt 0:00:02]} Nh3+ {[%emt 0:00:02]} 19. Kg2 {[%emt 0:00:02]} Qc8 {[%emt 0:00:05]} 20. Qb3 {[%emt 0:00:43]} a5 {[%emt 0:00:06]} 21. Nh4 {[%emt 0:00:05]} a4 {[%emt 0:00:05]} 22. Qa3 {[%emt 0:00:02]} g5 {[%emt 0:00:44]} 23. Nf3 {[%emt 0:00:09]} Qc6 {[%emt 0:00:09]} 24. Kxh3 {[%emt 0:00:18]} g4+ {[%emt 0:00:04]} 25. Kg2 {[%emt 0:00:03]} gxf3+ {[%emt 0:00:02]} 26. Kg1 {[%emt 0:00:01]} f5 {[%emt 0:00:09]} 27. Qe3 {[%emt 0:00:15]} f4 {[%emt 0:00:02]} 28. gxf4 {[%emt 0:00:07]} Rxf4 {[%emt 0:00:03]} 29. Kh1 {[%emt 0:00:04]} Re4 {[%emt 0:00:14]} 30. Rg1+ {[%emt 0:00:03]} Kf7 {[%emt 0:00:03]} 31. Qxh6 {[%emt 0:00:17]} Rg8 {[%emt 0:00:46]} 32. Qh7+ {[%emt 0:00:18]} Kf8 {[%emt 0:00:01]} 33. Qh6+ {[%emt 0:00:08]} Ke8 {[%emt 0:00:12]} 34. Rxg8+ {[%emt 0:01:36]} Nxg8 {[%emt 0:00:05]} 35. Qe6+ {[%emt 0:00:04]} Kd8 {[%emt 0:00:25]} 36. Qxg8+ {[%emt 0:00:14]} Kc7 {[%emt 0:00:01]} 37. Qh7+ {[%emt 0:00:15]} Kb6 {[%emt 0:00:03]} 38. b3 {[%emt 0:00:40]} Re2 {[%emt 0:00:26]} 39. bxa4 {[%emt 0:01:02]} Rxf2 {[%emt 0:00:12]} 40. Rb1+ {[%emt 0:00:13]} Ka7 {[%emt 0:00:08]} 41. Qd3 {[%emt 0:01:47]} Rd2 {[%emt 0:00:10]} 42. Qe3+ {[%emt 0:00:10]} Rd4 {[%emt 0:00:02]} 43. Kg1 {[%emt 0:00:09]} Ka8 {[%emt 0:00:05]} 44. Rb5 {[%emt 0:01:03]} Rg4+ {[%emt 0:00:57]} 45. Kf1 {[%emt 0:01:03]} Qxc4+ {[%emt 0:00:02]} 46. Ke1 {[%emt 0:00:05]} Re4 {[%emt 0:00:03]} 47. Ra5+ {[%emt 0:00:07]} Kb8 {[%emt 0:00:01]} 48. Qxe4 Qxe4+ {[%emt 0:00:09]} 49. Kd1 {[%emt 0:00:39]} Qd3+ {[%emt 0:00:04]} 50. Kc1 {[%emt 0:00:01]} f2 {[%emt 0:00:04]} 0-1

[Event "3rd FIDE WCCC Rapid U08 2019"]
[Site "Minsk"]
[Date "2019.08.16"]
[Round "2.4"]
[White "Moskvinov, Prokhor"]
[Black "Bianchuk, Gleb"]
[Result "1/2-1/2"]
[ECO "A46"]
[WhiteElo "1357"]
[BlackElo "1112"]
[Annotator "NA"]
[PlyCount "153"]
[EventDate "2019.08.16"]
[EventType "swiss"]
[EventCountry "BLR"]
[SourceTitle "playchess.com"]
[Source "ChessBase"]
[SourceQuality "1"]
[TimeControl "600+5"]

1. d4 {[%emt 0:00:00]} Nf6 {[%emt 0:00:00]} 2. Nf3 {[%emt 0:00:00]} e6 {[%emt 0:00:09]} 3. c4 {[%emt 0:00:10]} c5 {[%emt 0:00:11]} 4. e3 {[%emt 0:00:09]} d5 {[%emt 0:00:38]} 5. Nc3 {[%emt 0:00:04]} Na6 {[%emt 0:01:46]} 6. a3 {[%emt 0:00:27]} Bd7 {[%emt 0:00:43]} 7. dxc5 {[%emt 0:00:20]} dxc4 {[%emt 0:00:14]} 8. Bxc4 {[%emt 0:00:12]} Bxc5 {[%emt 0:00:08]} 9. b4 {[%emt 0:00:09]} Bb6 {[%emt 0:00:57]} 10. Bb2 {[%emt 0:00:13]} Rc8 {[%emt 0:00:23]} 11. Ba2 {[%emt 0:00:17]} O-O {[%emt 0:00:02]} 12. O-O {[%emt 0:00:04]} Nc7 {[%emt 0:01:00]} 13. Bb1 {[%emt 0:00:24]} Ncd5 {[%emt 0:00:11]} 14. Nxd5 {[%emt 0:00:08]} Nxd5 {[%emt 0:00:01]} 15. Qd3 {[%emt 0:00:06]} f5 {[%emt 0:01:14]} 16. e4 {[%emt 0:00:11]} Nf4 {[%emt 0:00:17]} 17. Qd2 {[%emt 0:00:05]} fxe4 {[%emt 0:00:45]} 18. Bxe4 {[%emt 0:00:04]} Bc6 {[%emt 0:00:17]} 19. Qxd8 {[%emt 0:00:31]} Rcxd8 {[%emt 0:00:13]} 20. Bxc6 {[%emt 0:00:02]} bxc6 {[%emt 0:00:03]} 21. Be5 {[%emt 0:00:05]} Nd3 {[%emt 0:00:13]} 22. Bg3 {[%emt 0:00:05]} Nf4 {[%emt 0:00:06]} 23. Bxf4 {[%emt 0:00:10]} Rxf4 {[%emt 0:00:04]} 24. Rac1 {[%emt 0:00:09]} Rd6 {[%emt 0:00:06]} 25. h3 {[%emt 0:00:16]} h6 {[%emt 0:00:16]} 26. Rfd1 {[%emt 0:00:24]} Rxd1+ {[%emt 0:00:30]} 27. Rxd1 {[%emt 0:00:01]} Bc7 {[%emt 0:00:02]} 28. Rd7 {[%emt 0:00:13]} Rf7 {[%emt 0:00:04]} 29. Rd4 {[%emt 0:00:17]} e5 {[%emt 0:00:19]} 30. Rc4 {[%emt 0:00:19]} Rf6 {[%emt 0:00:25]} 31. Nd2 Re6 {[%emt 0:00:09]} 32. Ne4 {[%emt 0:00:14]} Bb6 {[%emt 0:00:06]} 33. Kf1 {[%emt 0:00:06]} Kf7 {[%emt 0:00:03]} 34. f3 {[%emt 0:00:01]} g5 {[%emt 0:00:01]} 35. a4 {[%emt 0:00:05]} a5 {[%emt 0:00:05]} 36. Ke2 {[%emt 0:00:06]} axb4 {[%emt 0:00:09]} 37. Rxb4 {[%emt 0:00:03]} c5 {[%emt 0:00:06]} 38. Rc4 {[%emt 0:00:13]} Rc6 {[%emt 0:00:07]} 39. Kd3 {[%emt 0:00:03]} Ke6 {[%emt 0:00:04]} 40. a5 {[%emt 0:00:18]} Bxa5 {[%emt 0:00:08]} 41. Nxc5+ {[%emt 0:00:06]} Kd5 {[%emt 0:00:06]} 42. Ra4 {[%emt 0:01:04]} Rxc5 {[%emt 0:00:01]} 43. Ra2 {[%emt 0:00:01]} Rc3+ {[%emt 0:00:07]} 44. Ke2 {[%emt 0:00:02]} Rc5 {[%emt 0:00:04]} 45. Kd3 {[%emt 0:00:02]} h5 {[%emt 0:00:05]} 46. g3 {[%emt 0:00:02]} Rc3+ {[%emt 0:00:06]} 47. Ke2 {[%emt 0:00:02]} Rc5 {[%emt 0:00:04]} 48. Kd3 Bb6 {[%emt 0:00:08]} 49. h4 {[%emt 0:00:14]} gxh4 {[%emt 0:00:07]} 50. gxh4 {[%emt 0:00:05]} Bd8 {[%emt 0:00:01]} 51. Rb2 {[%emt 0:00:08]} Bxh4 {[%emt 0:00:06]} 52. Rh2 {[%emt 0:00:01]} Be1 {[%emt 0:00:12]} 53. Rxh5 {[%emt 0:00:06]} Bc3 {[%emt 0:00:06]} 54. f4 {[%emt 0:00:04]} Bd4 {[%emt 0:00:05]} 55. fxe5 {[%emt 0:00:03]} Bxe5 {[%emt 0:00:03]} 56. Rg5 {[%emt 0:00:16]} Rc3+ {[%emt 0:00:01]} 57. Kd2 {[%emt 0:00:02]} Rf3 {[%emt 0:00:09]} 58. Ke2 {[%emt 0:00:07]} Ra3 {[%emt 0:00:01]} 59. Rg4 {[%emt 0:00:09]} Ke6 {[%emt 0:00:08]} 60. Re4 {[%emt 0:00:09]} Kf5 {[%emt 0:00:01]} 61. Re3 {[%emt 0:00:02]} Ra2+ {[%emt 0:00:03]} 62. Kf3 {[%emt 0:00:08]} Rh2 {[%emt 0:00:03]} 63. Re2 {[%emt 0:00:13]} Rh3+ {[%emt 0:00:02]} 64. Kg2 {[%emt 0:00:02]} Ra3 {[%emt 0:00:03]} 65. Rf2+ {[%emt 0:00:11]} Kg4 {[%emt 0:00:03]} 66. Rd2 {[%emt 0:00:06]} Bf4 {[%emt 0:00:03]} 67. Rc2 {[%emt 0:00:07]} Rh3 {[%emt 0:00:05]} 68. Kf1 {[%emt 0:00:08]} Kf3 {[%emt 0:00:01]} 69. Rf2+ {[%emt 0:00:04]} Ke3 {[%emt 0:00:13]} 70. Re2+ {[%emt 0:00:04]} Kd3 {[%emt 0:00:17]} 71. Rg2 {[%emt 0:00:30]} Be3 {[%emt 0:00:09]} 72. Rg4 {[%emt 0:00:07]} Rh2 {[%emt 0:00:02]} 73. Rg3 {[%emt 0:00:11]} Ke4 {[%emt 0:00:06]} 74. Rg2 {[%emt 0:00:06]} Rh1+ {[%emt 0:00:06]} 75. Ke2 {[%emt 0:00:02]} Rh3 {[%emt 0:00:05]} 76. Rg4+ {[%emt 0:00:06]} Kf5 {[%emt 0:00:03]} 77. Rg2 {[%emt 0:00:03]} 1/2-1/2

[Event "3rd FIDE WCCC Rapid U08 2019"]
[Site "Minsk"]
[Date "2019.08.16"]
[Round "2.5"]
[White "Belski, Matvei"]
[Black "Samimi, Armin"]
[Result "0-1"]
[ECO "B24"]
[WhiteElo "1069"]
[BlackElo "1478"]
[Annotator "NA"]
[PlyCount "80"]
[EventDate "2019.08.16"]
[EventType "swiss"]
[EventCountry "BLR"]
[SourceTitle "playchess.com"]
[Source "ChessBase"]
[SourceQuality "1"]
[TimeControl "600+5"]

1. e4 c5 2. Nc3 Nc6 3. Nf3 Nf6 4. Bb5 Qc7 5. d3 e6 6. Qe2 Nd4 {[%emt 0:10:30]} 7. Nxd4 cxd4 8. Nb1 Qa5+ 9. Bd2 Qxb5 10. b3 Be7 11. O-O O-O 12. Qf3 Qh5 {[%emt 0:00:00]} 13. Qg3 {[%emt 0:01:29]} d6 {[%emt 0:00:00]} 14. Bf4 {[%emt 0:00:20]} e5 {[%emt 0:00:00]} 15. Bd2 {[%emt 0:00:06]} Qg4 {[%emt 0:00:00]} 16. Qxg4 {[%emt 0:00:09]} Nxg4 {[%emt 0:00:00]} 17. f3 {[%emt 0:00:05]} Ne3 {[%emt 0:00:00]} 18. Bxe3 {[%emt 0:00:03]} dxe3 {[%emt 0:00:00]} 19. Re1 {[%emt 0:00:01]} Be6 {[%emt 0:00:00]} 20. Rxe3 {[%emt 0:00:07]} Rac8 {[%emt 0:00:00]} 21. Re2 {[%emt 0:00:04]} Rc7 {[%emt 0:00:00]} 22. Kf2 {[%emt 0:00:12]} Rfc8 {[%emt 0:00:00]} 23. Na3 {[%emt 0:00:04]} a6 {[%emt 0:00:00]} 24. Rc1 {[%emt 0:00:04]} d5 {[%emt 0:00:00]} 25. exd5 {[%emt 0:00:09]} Bxa3 {[%emt 0:00:00]} 26. Rd1 {[%emt 0:00:08]} Bxd5 {[%emt 0:00:00]} 27. Rxe5 {[%emt 0:00:05]} Rxc2+ {[%emt 0:00:00]} 28. Kg3 {[%emt 0:00:02]} Bd6 {[%emt 0:00:00]} 29. Rde1 {[%emt 0:00:04]} f6 {[%emt 0:00:00]} 30. f4 {[%emt 0:00:02]} Rxg2+ {[%emt 0:00:00]} 31. Kh3 {[%emt 0:00:02]} fxe5 {[%emt 0:00:00]} 32. fxe5 {[%emt 0:00:02]} Be7 {[%emt 0:00:00]} 33. e6 {[%emt 0:00:07]} Rcc2 {[%emt 0:00:00]} 34. a4 {[%emt 0:00:13]} Rxh2+ {[%emt 0:00:00]} 35. Kg3 {[%emt 0:00:02]} Bd6+ {[%emt 0:00:00]} 36. Kg4 {[%emt 0:00:06]} h5+ {[%emt 0:00:00]} 37. Kg5 {[%emt 0:00:10]} Be7+ {[%emt 0:00:00]} 38. Kf5 {[%emt 0:00:11]} Bf6 {[%emt 0:00:00]} 39. e7 {[%emt 0:00:09]} Rcf2+ {[%emt 0:00:00]} 40. Kg6 {[%emt 0:00:21]} Bf7# {[%emt 0:00:00]} 0-1

[Event "3rd FIDE WCCC Rapid U08 2019"]
[Site "Minsk"]
[Date "2019.08.16"]
[Round "2.6"]
[White "Tsoy, Maxim"]
[Black "Kuts, Alexei"]
[Result "1-0"]
[ECO "C55"]
[WhiteElo "1689"]
[BlackElo "1088"]
[Annotator "NA"]
[PlyCount "53"]
[EventDate "2019.08.16"]
[EventType "swiss"]
[EventCountry "BLR"]
[SourceTitle "playchess.com"]
[Source "ChessBase"]
[SourceQuality "1"]
[TimeControl "600+5"]

1. e4 {[%emt 0:00:00]} e5 {[%emt 0:00:00]} 2. Nf3 {[%emt 0:00:00]} Nc6 {[%emt 0:00:00]} 3. Bc4 {[%emt 0:00:00]} Bc5 {[%emt 0:00:02]} 4. O-O {[%emt 0:00:02]} Nf6 {[%emt 0:00:02]} 5. d4 {[%emt 0:00:01]} exd4 {[%emt 0:00:03]} 6. e5 Ne4 {[%emt 0:00:54]} 7. Bd5 {[%emt 0:02:22]} f5 {[%emt 0:01:27]} 8. exf6 {[%emt 0:00:33]} Nxf6 {[%emt 0:00:03]} 9. Re1+ {[%emt 0:00:06]} Ne7 {[%emt 0:00:14]} 10. Bb3 {[%emt 0:00:06]} d5 {[%emt 0:00:13]} 11. Nxd4 {[%emt 0:00:25]} Bxd4 {[%emt 0:00:24]} 12. Qxd4 {[%emt 0:00:04]} c6 {[%emt 0:00:02]} 13. Bg5 {[%emt 0:00:12]} O-O {[%emt 0:00:16]} 14. c4 {[%emt 0:00:20]} dxc4 {[%emt 0:00:39]} 15. Bxc4+ {[%emt 0:00:26]} Ned5 {[%emt 0:00:39]} 16. Nc3 {[%emt 0:00:00]} Kh8 {[%emt 0:00:54]} 17. Nxd5 {[%emt 0:00:00]} cxd5 {[%emt 0:00:06]} 18. Bxf6 {[%emt 0:00:00]} Qxf6 {[%emt 0:00:54]} 19. Qxf6 {[%emt 0:00:00]} gxf6 {[%emt 0:00:14]} 20. Bxd5 {[%emt 0:00:00]} Rb8 {[%emt 0:00:13]} 21. Rac1 {[%emt 0:00:00]} b6 {[%emt 0:00:18]} 22. Rc7 {[%emt 0:00:00]} a5 {[%emt 0:00:19]} 23. Ree7 {[%emt 0:00:00]} Bf5 {[%emt 0:00:22]} 24. g4 {[%emt 0:00:02]} Bb1 {[%emt 0:01:17]} 25. f4 {[%emt 0:01:48]} Rg8 {[%emt 0:02:06]} 26. Bxg8 {[%emt 0:00:07]} Rxg8 {[%emt 0:00:02]} 27. h3 {[%emt 0:00:01]} 1-0

[Event "3rd FIDE WCCC Rapid U08 2019"]
[Site "Minsk"]
[Date "2019.08.16"]
[Round "3.1"]
[White "Nematolahi, Amirali"]
[Black "Yeganegi, Barad"]
[Result "1/2-1/2"]
[ECO "B21"]
[WhiteElo "1220"]
[BlackElo "1612"]
[Annotator "NA"]
[PlyCount "159"]
[EventDate "2019.08.16"]
[EventType "swiss"]
[EventCountry "BLR"]
[SourceTitle "playchess.com"]
[Source "ChessBase"]
[SourceQuality "1"]
[TimeControl "600+5"]

1. e4 {[%emt 0:00:00]} c5 {[%emt 0:00:00]} 2. d4 {[%emt 0:00:00]} cxd4 {[%emt 0:00:00]} 3. c3 {[%emt 0:00:00]} Nf6 {[%emt 0:00:00]} 4. e5 {[%emt 0:00:01]} Nd5 {[%emt 0:00:01]} 5. cxd4 {[%emt 0:00:02]} d6 {[%emt 0:00:03]} 6. Bc4 {[%emt 0:00:12]} Nb6 {[%emt 0:00:14]} 7. Bb5+ {[%emt 0:00:02]} Bd7 {[%emt 0:00:04]} 8. Bxd7+ {[%emt 0:00:07]} Qxd7 {[%emt 0:00:02]} 9. Nf3 {[%emt 0:00:07]} Nc6 {[%emt 0:00:10]} 10. exd6 {[%emt 0:00:22]} Qxd6 {[%emt 0:00:10]} 11. O-O {[%emt 0:00:16]} e6 {[%emt 0:00:02]} 12. Nc3 {[%emt 0:00:06]} Be7 {[%emt 0:00:02]} 13. Nb5 {[%emt 0:00:10]} Qd7 {[%emt 0:00:04]} 14. Bf4 {[%emt 0:00:26]} O-O {[%emt 0:00:13]} 15. Be5 {[%emt 0:00:06]} Nxe5 {[%emt 0:00:04]} 16. dxe5 {[%emt 0:00:30]} Qxb5 {[%emt 0:00:01]} 17. Qd4 {[%emt 0:00:49]} Rad8 {[%emt 0:00:09]} 18. Qg4 {[%emt 0:00:05]} Qd3 {[%emt 0:00:05]} 19. h3 {[%emt 0:01:01]} Qg6 {[%emt 0:00:09]} 20. Qf4 {[%emt 0:00:04]} Qf5 {[%emt 0:00:06]} 21. Qe3 {[%emt 0:00:07]} Rd3 {[%emt 0:00:12]} 22. Qe2 {[%emt 0:00:03]} Rdd8 {[%emt 0:00:08]} 23. Qe3 {[%emt 0:00:42]} f6 {[%emt 0:00:25]} 24. Nd4 {[%emt 0:01:09]} Qg6 {[%emt 0:03:09]} 25. Nxe6 {[%emt 0:00:10]} Rd3 {[%emt 0:01:48]} 26. Nxf8 {[%emt 0:00:37]} Bxf8 {[%emt 0:00:03]} 27. Qf4 {[%emt 0:00:43]} fxe5 {[%emt 0:00:10]} 28. Qg4 {[%emt 0:00:25]} Qxg4 {[%emt 0:00:43]} 29. hxg4 {[%emt 0:00:02]} Nc4 {[%emt 0:00:05]} 30. b3 {[%emt 0:00:24]} Nb6 {[%emt 0:00:36]} 31. Rfe1 {[%emt 0:00:05]} Nd7 {[%emt 0:00:14]} 32. Rad1 {[%emt 0:00:05]} Rd4 {[%emt 0:00:07]} 33. f3 {[%emt 0:00:11]} Bc5 {[%emt 0:00:01]} 34. Kh1 {[%emt 0:00:06]} Rxd1 {[%emt 0:00:08]} 35. Rxd1 {[%emt 0:00:01]} Nf6 {[%emt 0:00:13]} 36. g5 {[%emt 0:00:17]} Nh5 {[%emt 0:00:05]} 37. Rd8+ {[%emt 0:00:05]} Bf8 {[%emt 0:00:35]} 38. Rd7 {[%emt 0:00:03]} b5 {[%emt 0:00:07]} 39. Rxa7 {[%emt 0:00:05]} Ng3+ {[%emt 0:00:01]} 40. Kh2 {[%emt 0:00:03]} Nf1+ {[%emt 0:00:01]} 41. Kh3 {[%emt 0:00:03]} b4 {[%emt 0:00:12]} 42. Ra5 {[%emt 0:00:11]} Bd6 {[%emt 0:00:20]} 43. Rd5 {[%emt 0:00:04]} Bc7 {[%emt 0:00:02]} 44. Rd7 {[%emt 0:00:03]} Bb6 {[%emt 0:00:06]} 45. Rb7 {[%emt 0:00:19]} Bc5 {[%emt 0:00:15]} 46. Rb8+ {[%emt 0:00:46]} Kf7 {[%emt 0:00:05]} 47. Rb7+ {[%emt 0:00:02]} Be7 {[%emt 0:00:09]} 48. g3 {[%emt 0:00:15]} Nd2 {[%emt 0:00:04]} 49. Kg4 {[%emt 0:00:12]} e4 {[%emt 0:00:04]} 50. fxe4 {[%emt 0:00:05]} Nxe4 {[%emt 0:00:01]} 51. Rb5 {[%emt 0:00:29]} Nc3 {[%emt 0:00:09]} 52. Ra5 {[%emt 0:00:05]} Ke6 {[%emt 0:00:08]} 53. Kf3 {[%emt 0:00:08]} Nd5 {[%emt 0:00:03]} 54. Ke4 {[%emt 0:00:11]} Nc3+ {[%emt 0:00:01]} 55. Kd3 {[%emt 0:00:05]} g6 {[%emt 0:00:39]} 56. a3 {[%emt 0:00:08]} Nd5 {[%emt 0:00:15]} 57. Ke4 {[%emt 0:00:12]} Nc3+ {[%emt 0:00:26]} 58. Kd3 {[%emt 0:00:04]} Nd5 {[%emt 0:00:03]} 59. Ke4 {[%emt 0:00:04]} Nc3+ {[%emt 0:00:14]} 60. Kd3 {[%emt 0:00:03]} Nd5 {[%emt 0:00:02]} 61. Ke4 {[%emt 0:00:01]} Nc7 {[%emt 0:00:05]} 62. Ra7 {[%emt 0:00:37]} Nb5 {[%emt 0:00:06]} 63. Ra6+ {[%emt 0:00:10]} Nd6+ {[%emt 0:00:02]} 64. Kd3 {[%emt 0:00:08]} bxa3 {[%emt 0:00:09]} 65. Rxa3 {[%emt 0:00:01]} Bxg5 {[%emt 0:00:02]} 66. b4 {[%emt 0:00:08]} Be7 {[%emt 0:00:02]} 67. g4 {[%emt 0:00:07]} Kf7 {[%emt 0:00:06]} 68. Rb3 {[%emt 0:00:06]} Nb7 {[%emt 0:00:07]} 69. Ke4 {[%emt 0:00:08]} Ke6 {[%emt 0:00:02]} 70. Re3 {[%emt 0:00:11]} Nd6+ {[%emt 0:00:07]} 71. Kd4+ {[%emt 0:00:03]} Kd7 {[%emt 0:00:02]} 72. Kd5 {[%emt 0:00:09]} Nb7 {[%emt 0:00:12]} 73. b5 {[%emt 0:00:10]} h5 {[%emt 0:00:31]} 74. gxh5 {[%emt 0:00:15]} gxh5 {[%emt 0:00:01]} 75. Rh3 {[%emt 0:00:12]} h4 {[%emt 0:00:01]} 76. Ke4 {[%emt 0:00:01]} Nd6+ {[%emt 0:00:16]} 77. Kf4 {[%emt 0:00:04]} Nxb5 {[%emt 0:00:09]} 78. Kg4 {[%emt 0:00:04]} Nd6 {[%emt 0:00:02]} 79. Rxh4 {[%emt 0:00:03]} Bxh4 {[%emt 0:00:07]} 80. Kxh4 1/2-1/2